bitfinex-derivatives/quotes_ETHF0:USTF0_20250507
["timestamp","ask_amount","ask_price","bid_price","bid_amount"]
[1746657887158,3.2078,1819.4,1819.0,4.4806]
[1746657887358,3.71078,1819.3,1819.2,1.09918]
[1746657887869,1.09921,1819.2,1819.1,2.78603]
[1746657888168,2.83281,1819.2,1819.1,1.09923]
[1746657890156,1.7336,1819.2,1819.0,3.674]
[1746657890361,3.66747,1819.1,1819.0,3.674]
[1746657890869,6.87527,1819.1,1819.0,3.674]
[1746657891163,3.66747,1819.1,1819.0,1.09934]
[1746657892166,2.5682,1819.1,1818.9,1.7131]
[1746657892368,2.5675,1819.0,1818.9,2.8125]
[1746657892866,3.66684,1819.0,1818.9,2.8125]
[1746657893169,3.66684,1819.0,1818.9,6.4865]
[1746657893369,2.5675,1819.0,1818.9,6.4865]
[1746657894271,3.66684,1819.0,1818.9,6.4865]
[1746657895569,2.5675,1819.0,1818.9,6.4865]
[1746657895868,1.09923,1819.2,1819.1,1.09927]
[1746657896070,3.51883,1819.2,1819.1,1.09927]
[1746657900770,1.0994,1818.9,1818.8,1.0994]
[1746657901080,4.30717,1819.0,1818.9,1.0994]
[1746657901661,1.09934,1819.1,1819.0,1.0993]
[1746657903873,1.09934,1819.1,1818.8,4.37884]
[1746657903874,1.09952,1818.7,1818.5,0.10998075]
[1746657904172,4.693,1818.8,1818.7,1.09952]
[1746657904875,5.79246,1818.8,1818.7,1.90512]
[1746657905173,5.79246,1818.8,1818.7,4.4796]
[1746657905375,6.65096,1818.8,1818.7,4.4796]
[1746657905775,6.65096,1818.8,1818.7,5.57912]
[1746657906076,6.65096,1818.8,1818.7,1.90512]
[1746657906777,6.65096,1818.8,1818.7,0.8056]
[1746657907379,6.65096,1818.8,1818.7,1.90512]
[1746657907577,6.65096,1818.8,1818.7,3.65022]
[1746657908579,6.65096,1818.8,1818.7,2.5507]
[1746657908975,1.09952,1818.7,1818.6,1.09953]
[1746657909179,1.09958,1818.6,1818.5,7.98138]
[1746657909376,1.91808,1818.6,1818.5,9.71758]
[1746657909880,0.8185,1818.6,1818.5,9.71758]
[1746657910481,1.91808,1818.6,1818.5,9.71758]
[1746657910686,1.91808,1818.6,1818.5,6.50978]
[1746657910878,1.91808,1818.6,1818.5,3.674]
[1746657911380,1.91808,1818.6,1818.1,1.0998]
[1746657911381,1.09987,1818.2,1818.1,1.0998]
[1746657911976,1.09987,1818.2,1818.1,2.8591]
[1746657914074,1.09988,1818.1,1818.0,5.1114]
[1746657915183,1.09988,1818.1,1818.0,8.7854]
[1746657915384,1.09985,1818.2,1818.1,1.09982]
[1746657915577,1.09972,1818.4,1818.3,1.09976]
[1746657915978,1.09969,1818.5,1818.4,1.09964]
[1746657916179,1.09969,1818.5,1818.4,1.90814]
[1746657916782,1.09969,1818.5,1818.4,1.09964]
[1746657916974,2.74936,1818.4,1818.0,11.7485]
[1746657917180,1.09988,1818.1,1818.0,7.92312]
[1746657917778,1.09988,1818.1,1818.0,1.92712]
[1746657918083,8.29698,1818.2,1817.8,4.9253]
[1746657918282,1.1,1817.9,1817.8,1.92723]
[1746657919184,1.1,1817.9,1817.8,0.8272]
[1746657919387,1.10006,1817.8,1817.7,1.10008]
[1746657919589,1.10012,1817.7,1817.6,5.92154]
[1746657920081,2.85292,1817.7,1817.6,5.92154]
[1746657920276,1.7528,1817.7,1817.6,5.92154]
[1746657920679,1.7288,1817.8,1817.7,1.10012]
[1746657920881,1.7288,1817.8,1817.7,2.76412]
[1746657921788,0.8871,1817.8,1817.7,2.76412]
[1746657921989,3.61066,1817.8,1817.7,2.76412]
[1746657922481,2.5106,1817.8,1817.7,2.76412]
[1746657922681,3.61066,1817.8,1817.7,2.76412]
[1746657922881,3.61066,1817.8,1817.6,3.2078]
[1746657922882,1.10012,1817.7,1817.6,4.30796]
[1746657923083,2.72362,1817.7,1817.6,4.30796]
[1746657923991,1.10018,1817.6,1817.5,2.4912]
[1746657924191,2.86038,1817.6,1817.5,1.10021]
[1746657924391,2.6033,1817.6,1817.3,8.57167]
[1746657924687,1.94333,1817.6,1817.5,1.10024]
[1746657925987,1.10024,1817.5,1817.4,1.10026]
[1746657926288,1.10024,1817.5,1817.4,3.674]
[1746657927290,1.1003,1817.4,1817.3,1.94081]
[1746657927590,1.9228,1817.4,1817.3,1.94081]
[1746657927786,5.5301,1817.6,1817.4,1.10024]
[1746657927986,7.45283,1817.6,1817.5,1.10024]
[1746657928795,1.10014,1817.7,1817.6,1.10018]
[1746657928992,0.8225,1817.8,1817.7,1.10006]
[1746657929295,1.10001,1817.9,1817.8,1.10006]
[1746657929485,2.77697,1818.0,1817.9,1.1]
[1746657929685,1.10006,1817.8,1817.7,4.77407]
[1746657930281,1.10006,1817.8,1817.7,1.10007]
[1746657931091,0.8225,1818.0,1817.9,1.1]
[1746657931294,1.92244,1818.0,1817.9,1.1]
[1746657932392,1.10004,1817.9,1817.8,1.1]
[1746657932592,1.10004,1817.9,1817.8,2.7449]
[1746657933295,1.10004,1817.9,1817.8,6.4189]
[1746657935093,2.75749,1818.0,1817.9,1.1]
[1746657940006,4.40519,1818.0,1817.9,1.1]
[1746657944710,6.05518,1818.0,1817.7,3.2078]
[1746657944909,1.10006,1817.8,1817.7,2.87147]
[1746657945110,1.10006,1817.8,1817.7,1.7714]
[1746657945311,2.83846,1817.8,1817.7,1.7714]
[1746657945504,1.10012,1817.7,1817.6,6.8609]
[1746657945810,3.65952,1817.7,1817.6,6.8609]
[1746657946211,3.65952,1817.7,1817.6,5.996]
[1746657946813,1.10018,1817.6,1817.5,4.77424]
[1746657947111,2.83858,1817.6,1817.5,2.87164]
[1746657948112,2.83858,1817.6,1817.5,1.10024]
[1746657948313,1.10024,1817.5,1817.4,4.30805]
[1746657948611,2.76604,1817.5,1817.4,6.07105]
[1746657949213,2.76604,1817.5,1817.4,9.74505]
[1746657949412,5.77812,1817.8,1817.7,1.10012]
[1746657950103,5.77812,1817.8,1817.7,4.77412]
[1746657950300,5.77812,1817.8,1817.7,7.36822]
[1746657951214,5.77812,1817.8,1817.7,3.69422]
[1746657952307,6.62542,1817.8,1817.7,3.69422]
[1746657954217,6.62542,1817.8,1817.7,7.36822]
[1746657958327,6.62542,1817.8,1817.7,6.2681]
[1746657958624,8.30482,1817.8,1817.7,3.674]
[1746657959324,1.10018,1817.7,1817.6,1.10014]
[1746657959531,3.62298,1817.7,1817.6,1.10014]
[1746657962124,3.62298,1817.7,1817.6,2.78214]
[1746657962726,2.77958,1817.7,1817.6,2.78214]
[1746657964230,1.10018,1817.6,1817.5,5.609]
[1746657964530,2.87138,1817.6,1817.5,5.609]
[1746657965925,2.87138,1817.6,1817.5,7.3457]
[1746657966325,1.10018,1817.6,1817.5,7.3457]
[1746657967332,1.10018,1817.6,1817.5,8.07370981]
[1746657967534,1.7794,1817.7,1817.6,1.10018]
[1746657967735,2.87957,1817.7,1817.6,2.77218]
[1746657969033,1.94739,1817.8,1817.7,1.10012]
[1746657969336,2.75847,1818.0,1817.9,1.1]
[1746657969533,1.1,1817.9,1817.8,3.56001]
[1746657969733,2.7585,1817.9,1817.8,4.28822521]
[1746657970034,2.7585,1817.9,1817.8,3.56001]
[1746657970231,2.7585,1817.9,1817.8,7.96221404]
[1746657970533,2.7585,1817.9,1817.8,7.96218579]
[1746657970734,1.92059,1818.0,1817.9,1.1]
[1746657970927,1.92059,1818.0,1817.9,2.7378]
[1746657971329,3.57909,1818.0,1817.9,2.7378]
[1746657971735,3.57909,1818.0,1817.9,1.6378]
[1746657972238,1.1,1817.9,1817.8,1.92223]
[1746657972438,2.8004,1817.9,1817.8,4.25729659]
[1746657972736,2.8004,1817.9,1817.8,3.52873]
[1746657973134,2.8004,1817.9,1817.8,7.93123294]
[1746657973338,2.8004,1817.9,1817.8,7.20273]
[1746657976141,2.8004,1817.9,1817.8,3.52873]
[1746657976343,1.10008,1817.8,1817.7,1.10006]
[1746657976539,2.75098,1817.8,1817.7,1.10006]
[1746657976741,1.10012,1817.7,1817.6,0.00656089]
[1746657976936,3.57532,1817.7,1817.6,0.00656089]
[1746657983447,3.57532,1817.7,1817.6,1.10674089]
[1746657983747,3.57532,1817.7,1817.6,0.00656089]
[1746657985749,1.10024,1817.5,1817.4,3.2078]
[1746657986351,1.10036,1817.3,1817.2,3.2078]
[1746657986735,3.61336,1817.3,1817.2,3.2078]
[1746657987143,1.10042,1817.2,1817.1,0.8429]
[1746657987346,2.72392,1817.2,1817.1,1.94338]
[1746657987651,2.72392,1817.2,1817.1,1.10048]
[1746657989749,1.10048,1817.1,1817.0,2.73211]
[1746657989953,0.8687,1817.1,1817.0,2.73211]
[1746657990147,0.8687,1817.1,1817.0,6.40611]
[1746657990349,1.10041,1817.3,1817.2,1.10042]
[1746657990851,1.10042,1817.2,1817.1,2.84624]
[1746657991348,1.10048,1817.1,1817.0,4.77449]
[1746657991753,1.10048,1817.1,1817.0,3.674]
[1746657992151,1.10055,1817.0,1816.9,5.15049]
[1746657993157,1.10055,1817.0,1816.9,8.82449]
[1746657996355,2.84705,1817.0,1816.9,8.82449]
[1746657997455,2.84705,1817.0,1816.9,5.61669]
[1746657998059,2.84705,1817.0,1816.9,7.27589]
[1746657999756,3.2078,1817.3,1817.0,1.10055]
[1746657999959,4.30822,1817.3,1817.2,1.10042]
[1746658000355,6.82952,1817.3,1817.2,0.8699]
[1746658001469,6.82952,1817.3,1817.2,3.67722]
[1746658002256,4.667,1817.4,1817.3,1.10036]
[1746658002457,5.7673,1817.4,1817.3,2.80726]
[1746658002755,1.1003,1817.4,1817.3,2.80726]
[1746658003157,1.1003,1817.4,1817.3,6.48126]
[1746658003860,1.1003,1817.4,1817.3,5.3809]
[1746658004061,1.1003,1817.4,1817.3,3.674]
[1746658004364,1.10036,1817.3,1817.2,5.17807]
[1746658004566,1.97226,1817.3,1817.2,3.68687]
[1746658005061,1.97226,1817.3,1817.2,0.8699]
[1746658005364,2.83686,1817.3,1817.2,1.97032]
[1746658007066,2.83686,1817.3,1817.2,0.8699]
[1746658007266,2.83686,1817.3,1817.2,1.97032]
[1746658007468,1.10042,1817.2,1817.1,1.7166]
[1746658007667,2.77622,1817.2,1817.1,1.7166]
[1746658009166,2.77622,1817.2,1817.1,2.81708]
[1746658012768,1.10042,1817.2,1817.1,2.81708]
[1746658013264,2.73782,1817.2,1817.1,2.81708]
[1746658015172,2.73782,1817.2,1817.1,1.7166]
[1746658016670,2.73782,1817.2,1817.1,2.81708]
[1746658017271,1.10048,1817.1,1817.0,0.846]
[1746658017474,2.75158,1817.1,1817.0,1.94655]
[1746658018672,2.75158,1817.1,1817.0,3.69545]
[1746658026883,2.75158,1817.1,1817.0,0.846]
[1746658028379,2.75158,1817.1,1817.0,1.94655]
[1746658028582,2.75158,1817.1,1817.0,0.846]
[1746658029278,3.2078,1820.0,1818.1,2.74971]
[1746658029474,2.47682602,1818.7,1818.6,1.09958]
[1746658029682,14.97832016,1819.3,1818.8,2.74863]
[1746658029981,14.97832016,1819.3,1819.2,4.30701]
[1746658030190,40.8,1819.5,1819.4,1.09909]
[1746658030480,54.86642546,1819.8,1819.5,1.099]
[1746658030880,14.97832016,1819.6,1819.5,1.099]
[1746658031380,14.97832016,1819.6,1819.5,4.773]
[1746658032183,18.18612016,1819.6,1819.5,3.674]
[1746658032683,24.28509016,1819.6,1819.5,3.674]
[1746658032883,26.90939016,1819.6,1819.5,3.674]
[1746658033179,1.09905,1819.5,1819.1,1.09925]
[1746658033385,66.61042016,1819.6,1818.9,7.3115482]
[1746658033386,18.18612016,1819.2,1818.9,7.3115482]
[1746658033683,18.18612016,1819.0,1818.9,1.0994]
[1746658034182,19.92382016,1819.0,1818.8,1.09942]
[1746658034482,14.97832016,1818.9,1818.8,1.09942]
[1746658034683,16.71602016,1818.9,1818.7,1.09948]
[1746658034878,1.7377,1818.9,1818.8,1.09946]
[1746658035477,1.7377,1818.9,1818.8,2.75986]
[1746658036176,1.7377,1818.9,1818.8,6.43386]
[1746658036779,16.71602016,1818.9,1818.8,6.43386]
[1746658039480,1.7377,1818.9,1818.8,6.43386]
[1746658039688,16.71602016,1818.9,1818.8,6.43386]
[1746658041086,3.2078,1819.2,1819.1,1.09927]
[1746658041683,4.9229,1819.2,1819.1,1.09927]
[1746658042584,4.9229,1819.2,1818.9,1.09937]
[1746658042585,1.09939,1819.0,1818.9,1.09937]
[1746658042781,19.28551016,1819.0,1818.9,1.09937]
[1746658044383,19.28546016,1819.0,1818.9,1.09937]
[1746658044584,20.91876016,1819.0,1818.9,1.09937]
[1746658044884,19.81942016,1819.0,1818.6,2.74895]
[1746658045085,18.18612016,1818.8,1818.7,1.09952]
[1746658045988,14.97832016,1818.8,1818.7,1.09952]
[1746658046185,16.61922016,1818.8,1818.7,1.09952]
[1746658046587,19.82702016,1818.8,1818.7,1.09952]
[1746658047387,4.8487,1818.8,1818.7,1.09952]
[1746658047988,4.8487,1818.8,1818.7,2.83042]
[1746658048189,4.8487,1818.8,1818.7,6.50442]
[1746658048389,1.6409,1818.8,1818.7,6.50442]
[1746658049090,1.09941,1818.9,1818.8,1.09946]
[1746658050088,1.09941,1818.9,1818.8,4.77346]
[1746658051391,4.30718,1819.0,1818.9,1.0994]
[1746658051784,19.28550016,1819.0,1818.9,1.0994]
[1746658052391,20.94670016,1819.0,1818.9,1.0994]
[1746658056088,20.94670016,1819.0,1818.9,4.7734]
[1746658057692,20.94670016,1819.0,1818.9,5.62559968]
[1746658057995,20.94670016,1819.0,1818.9,6.42709507]
[1746658058187,3.2078,1819.0,1818.9,6.42709507]
[1746658058393,4.9581,1819.2,1819.1,1.09927]
[1746658058692,19.93642016,1819.2,1819.1,2.7529466]
[1746658058991,4.9581,1819.2,1819.1,2.7529466]
[1746658059391,3.2078,1819.2,1819.1,8.7489466]
[1746658059598,6.90893,1819.5,1819.4,1.09909]
[1746658059792,6.90893,1819.5,1819.4,1.90056692]
[1746658060000,20.78822016,1819.5,1819.4,2.7527666]
[1746658060206,17.58042016,1819.5,1819.4,2.7527666]
[1746658060496,2.6021,1819.5,1819.4,2.7527666]
[1746658061092,2.6021,1819.5,1819.4,6.4267666]
[1746658061698,1.7503,1819.5,1819.4,6.4267666]
[1746658062093,2.84933,1819.5,1819.4,6.4309624]
[1746658063297,1.7503,1819.5,1819.4,6.4309624]
[1746658064097,1.7503,1819.5,1819.4,2.7569624]
[1746658064293,21.03545016,1819.5,1819.4,1.6578724]
[1746658064595,21.03545016,1819.5,1819.4,0.85219968]
[1746658064787,1.09915,1819.3,1819.2,4.77317]
[1746658064989,16.07747016,1819.3,1819.2,5.54243277]
[1746658065195,18.18612016,1819.3,1819.2,1.86843277]
[1746658065401,19.91662016,1819.3,1819.2,2.64520026]
[1746658065592,21.01577016,1819.3,1819.2,1.87593749]
[1746658065899,21.01577016,1819.3,1819.2,1.54597696]
[1746658067000,21.01577016,1819.3,1819.2,2.64518696]
[1746658068096,21.01577016,1819.3,1819.2,1.54597696]
[1746658069403,21.01577016,1819.3,1819.2,1.54745061]
[1746658070603,21.01577016,1819.3,1819.2,0.77068312]
[1746658071303,1.09921,1819.2,1819.1,1.09923]
[1746658071502,17.74073016,1819.2,1819.1,1.87005694]
[1746658071704,17.74073016,1819.2,1819.1,2.64719038]
[1746658072505,20.94853016,1819.2,1819.1,2.64719038]
[1746658072802,20.94853016,1819.2,1819.1,0.77082694]
[1746658073304,1.09927,1819.1,1819.0,1.0993]
[1746658073505,17.79259016,1819.1,1819.0,1.85816867]
[1746658074098,17.79259016,1819.1,1819.0,5.53216867]
[1746658075504,17.79259016,1819.1,1819.0,3.674]
[1746658076199,1.09934,1819.0,1818.9,1.09939]
[1746658076398,21.78136016,1819.0,1818.9,1.09939]
[1746658077402,20.68202016,1819.0,1818.7,1.6726]
[1746658077607,17.77152016,1818.9,1818.8,0.75887616]
[1746658077906,1.09946,1818.8,1818.7,2.77207]
[1746658078105,20.97938016,1818.8,1818.7,0.75897771]
[1746658078407,1.09952,1818.7,1818.6,1.09956]
[1746658078609,2.79332,1818.7,1818.6,1.85830317]
[1746658079803,2.79332,1818.7,1818.6,0.75874317]
[1746658079804,17.77164016,1818.7,1818.6,0.75874317]
[1746658080006,1.09958,1818.6,1818.5,4.77364]
[1746658080210,21.84320016,1818.6,1818.5,1.85832632]
[1746658080407,21.84320016,1818.6,1818.5,1.09964]
[1746658080607,21.84320016,1818.6,1818.5,1.85840182]
[1746658081713,21.84320016,1818.6,1818.5,1.09964]
[1746658082010,21.84320016,1818.6,1818.5,1.85784059]
[1746658082211,21.84320016,1818.6,1818.5,1.09964]
[1746658083119,21.84320016,1818.6,1818.5,4.77364]
[1746658087116,21.84320016,1818.6,1818.5,3.674]
[1746658088123,1.09964,1818.5,1818.4,1.09969]
[1746658088419,17.83856016,1818.5,1818.4,1.09969]
[1746658088615,1.09974,1818.4,1818.3,1.09971]
[1746658088813,2.86034,1818.4,1818.3,1.09971]
[1746658089014,1.09976,1818.3,1818.2,2.81557]
[1746658089214,1.7606,1818.3,1818.2,6.48957]
[1746658089424,2.86036,1818.3,1818.2,6.48957]
[1746658093726,17.83868016,1818.3,1818.2,6.48957]
[1746658095820,17.83868016,1818.3,1818.2,3.674]
[1746658096125,23.33728016,1818.3,1818.2,3.674]
[1746658096826,1.1,1818.0,1817.8,0.8567]
[1746658097027,14.97832016,1818.0,1817.9,1.09997]
[1746658097223,3.2078,1818.1,1818.0,1.09994]
[1746658097425,19.28600016,1818.1,1818.0,1.09994]
[1746658097628,19.28600016,1818.1,1818.0,2.81644]
[1746658098129,19.28600016,1818.1,1818.0,6.49044]
[1746658098929,21.03470016,1818.1,1818.0,6.49044]
[1746658099122,19.93482016,1818.1,1818.0,6.49044]
[1746658099329,21.03470016,1818.1,1818.0,6.49044]
[1746658099931,17.82690016,1818.1,1818.0,6.49044]
[1746658100729,16.72702016,1818.1,1818.0,6.49044]
[1746658101028,17.82690016,1818.1,1818.0,6.49044]
[1746658102323,16.72702016,1818.1,1818.0,6.49044]
[1746658102628,1.7487,1818.1,1818.0,6.49044]
[1746658102822,16.72702016,1818.1,1818.0,6.49044]
[1746658103130,17.82690016,1818.1,1818.0,6.49044]
[1746658105136,21.03470016,1818.1,1818.0,4.77394]
[1746658107930,1.10009,1817.8,1817.7,1.10006]
[1746658108132,14.97832016,1817.8,1817.7,1.85712656]
[1746658108330,3.73655,1817.9,1817.8,1.10006]
[1746658108730,18.71487016,1817.9,1817.8,1.10006]
[1746658109133,18.71487016,1817.9,1817.8,4.77406]
[1746658110340,17.61482016,1817.9,1817.8,4.77406]
[1746658112838,18.71482016,1817.9,1817.8,4.77406]
[1746658115242,18.71482016,1817.9,1817.8,1.10006]
[1746658117434,21.92262016,1817.9,1817.7,1.6839]
[1746658117638,17.73948016,1817.8,1817.7,1.10008]
[1746658117844,1.10018,1817.7,1817.6,1.10014]
[1746658118041,17.73960016,1817.7,1817.6,1.10014]
[1746658118442,20.94740016,1817.7,1817.6,1.10014]
[1746658126551,1.10024,1817.6,1817.5,1.1002]
[1746658126752,17.70586016,1817.6,1817.5,1.1002]
[1746658127956,2.72754,1817.6,1817.5,1.8562301]
[1746658128147,2.72754,1817.6,1817.5,3.5582301]
[1746658128752,17.70586016,1817.6,1817.5,3.5582301]
[1746658129344,1.96988,1817.8,1817.5,8.4164401]
[1746658129548,16.94820016,1817.8,1817.7,1.10012]
[1746658130039,18.63410016,1817.8,1817.7,1.10012]
[1746658130245,17.53402016,1817.8,1817.7,5.53058711]
[1746658130447,18.63408016,1817.8,1817.7,4.77412]
[1746658130649,18.63408016,1817.8,1817.7,5.53062111]
[1746658137454,18.63408016,1817.8,1817.7,5.53281647]
[1746658139152,18.63408016,1817.8,1817.7,4.77412]
[1746658139358,18.63408016,1817.8,1817.7,5.53300158]
[1746658140759,18.63408016,1817.8,1817.7,4.77412]
[1746658140959,18.63408016,1817.8,1817.7,5.5330578]
[1746658141562,18.63408016,1817.8,1817.7,4.43307339]
[1746658141762,18.63408016,1817.8,1817.7,3.674]
[1746658142263,1.10018,1817.6,1817.5,1.10024]
[1746658142455,19.28630016,1817.6,1817.5,1.10024]
[1746658142962,17.76050016,1817.6,1817.5,1.85863435]
[1746658143161,17.76050016,1817.6,1817.5,1.85855388]
[1746658143957,17.76050016,1817.6,1817.5,1.10024]
[1746658144163,20.96830016,1817.6,1817.5,1.85863291]
[1746658144465,20.96830016,1817.6,1817.5,1.10024]
[1746658144659,20.96830016,1817.6,1817.5,1.85868984]
[1746658144859,20.96830016,1817.6,1817.5,1.10024]
[1746658145063,20.96830016,1817.6,1817.5,1.85856373]
[1746658145962,20.96830016,1817.6,1817.5,1.85823501]
[1746658148062,20.96830016,1817.6,1817.5,1.8582671]
[1746658149666,20.96830016,1817.6,1817.5,1.85833362]
[1746658150967,5.17772,1817.8,1817.7,1.10012]
[1746658151171,1.96992,1817.8,1817.7,1.85786479]
[1746658151567,1.96992,1817.8,1817.7,1.85778745]
[1746658151766,3.68252,1817.8,1817.7,1.85778745]
[1746658152166,3.68252,1817.8,1817.7,5.53178745]
[1746658152466,2.5824,1817.8,1817.7,7.21218745]
[1746658152966,3.68246,1817.8,1817.7,7.21218745]
[1746658153366,3.68246,1817.8,1817.7,7.21311411]
[1746658153868,18.66078016,1817.8,1817.7,7.21311411]
[1746658155070,17.56072016,1817.8,1817.7,7.21311411]
[1746658155971,1.95685,1817.9,1817.8,1.10006]
[1746658156171,3.57535,1817.9,1817.8,3.59205411]
[1746658157772,18.55367016,1817.9,1817.8,3.59205411]
[1746658157973,2.4753,1817.9,1817.8,3.59205411]
[1746658158173,2.4753,1817.9,1817.8,7.26605411]
[1746658158974,2.4753,1817.9,1817.8,7.26616283]
[1746658159172,2.4753,1817.9,1817.8,7.26616608]
[1746658159675,3.5753,1817.9,1817.8,7.26616608]
[1746658159971,2.4753,1817.9,1817.8,7.26616608]
[1746658160975,2.4753,1817.9,1817.8,7.26647649]
[1746658162081,3.5753,1817.9,1817.8,7.26647649]
[1746658162478,3.5753,1817.9,1817.8,7.26650557]
[1746658162674,3.5753,1817.9,1817.8,7.26644891]
[1746658162983,2.4753,1817.9,1817.8,7.26644891]
[1746658163980,3.5753,1817.9,1817.8,7.26644891]
[1746658164370,7.8388,1818.0,1817.9,1.1]
[1746658164574,3.2078,1818.2,1818.1,1.09982]
[1746658164776,18.18612016,1818.2,1818.1,3.498077]
[1746658165574,19.28594016,1818.2,1818.1,3.498077]
[1746658165981,16.07814016,1818.2,1818.1,3.498077]
[1746658166683,16.07814016,1818.2,1818.1,3.49753127]
[1746658166875,17.85324016,1818.2,1818.1,3.49753127]
[1746658167283,17.85324016,1818.2,1818.1,3.49819241]
[1746658167482,2.87492,1818.2,1818.1,3.49819241]
[1746658167786,1.7751,1818.2,1818.1,3.49819241]
[1746658168671,1.7751,1818.2,1818.1,3.4979385]
[1746658168882,2.87492,1818.2,1818.1,3.4979385]
[1746658169280,2.87492,1818.2,1818.1,2.73962]
[1746658171284,17.85324016,1818.2,1818.1,2.73962]
[1746658171484,17.85324016,1818.2,1818.1,1.09982]
[1746658173389,17.85153759,1818.2,1818.1,1.09982]
[1746658175288,17.85153759,1818.2,1818.0,3.674]
[1746658175491,19.28600016,1818.1,1818.0,3.674]
[1746658175684,19.28600016,1818.1,1818.0,4.77394]
[1746658175985,19.28600016,1818.1,1818.0,3.674]
[1746658176287,1.09999,1818.0,1817.9,1.09994]
[1746658176478,16.07831016,1818.0,1817.9,1.09994]
[1746658176677,17.84741016,1818.0,1817.9,1.8588238]
[1746658176991,17.84741016,1818.0,1817.9,1.85900441]
[1746658177194,18.66291016,1818.0,1817.9,5.53300441]
[1746658177987,18.66291016,1818.0,1817.9,5.53360792]
[1746658179789,18.66291016,1818.0,1817.9,5.53398878]
[1746658181794,18.66291016,1818.0,1817.9,5.5343466]
[1746658182593,18.66291016,1818.0,1817.9,4.4344066]
[1746658183492,18.66291016,1818.0,1817.9,5.5344066]
[1746658183790,18.66291016,1818.0,1817.9,5.53432676]
[1746658184394,18.66291016,1818.0,1817.9,4.43432676]
[1746658184689,19.55931016,1818.0,1817.9,4.43432676]
[1746658185085,19.55931016,1818.0,1817.9,3.674]
[1746658185286,19.55931016,1818.0,1817.9,0.76041597]
[1746658185486,1.1,1817.9,1817.8,1.10006]
[1746658185688,17.82062016,1817.9,1817.8,1.86041327]
[1746658185887,2.8423,1817.9,1817.8,1.86041327]
[1746658186291,2.8423,1817.9,1817.8,5.53441327]
[1746658187293,2.8423,1817.9,1817.8,5.53440227]
[1746658187792,17.82062016,1817.9,1817.8,5.53440227]
[1746658188094,17.82062016,1817.9,1817.8,3.674]
[1746658188393,1.10018,1817.6,1817.5,1.1002]
[1746658188592,16.07850016,1817.6,1817.5,1.86027836]
[1746658188795,19.63570016,1817.6,1817.5,1.86027836]
[1746658189392,19.63570016,1817.6,1817.5,5.53427836]
[1746658190195,22.84350016,1817.6,1817.5,4.43407836]
[1746658190988,22.84350016,1817.6,1817.5,4.43387045]
[1746658191194,1.10024,1817.5,1817.4,1.10029]
[1746658191389,17.79736016,1817.5,1817.4,1.10029]
[1746658191694,17.79736016,1817.5,1817.4,1.85993722]
[1746658191993,17.79736016,1817.5,1817.4,1.8599379]
[1746658192190,17.79736016,1817.5,1817.4,5.5334842]
[1746658192393,17.79736016,1817.5,1817.4,5.53325312]
[1746658192586,17.79736016,1817.5,1817.4,5.53290265]
[1746658192894,17.79736016,1817.5,1817.4,4.77429]
[1746658193094,17.79736016,1817.5,1817.4,5.53252161]
[1746658193396,17.79736016,1817.5,1817.4,4.77429]
[1746658193692,17.79736016,1817.5,1817.4,5.53258786]
[1746658194791,17.79736016,1817.5,1817.4,4.43229786]
[1746658195098,17.79736016,1817.5,1817.4,3.674]
[1746658195292,1.1003,1817.4,1817.3,2.83615]
[1746658195597,1.1004,1817.3,1817.2,1.10042]
[1746658195899,2.9557,1817.3,1817.2,1.8578217]
[1746658196088,4.6612,1817.3,1817.2,1.8578217]
[1746658196288,4.6612,1817.3,1817.2,4.77442]
[1746658196489,19.63952016,1817.3,1817.2,4.77442]
[1746658196792,19.63952016,1817.3,1817.2,3.674]
[1746658196996,19.63952016,1817.3,1817.2,4.77442]
[1746658197194,19.63952016,1817.3,1817.2,1.10042]
[1746658197590,1.10048,1817.2,1817.1,1.10043]
[1746658197788,17.80160016,1817.2,1817.1,1.10043]
[1746658197989,2.82328,1817.2,1817.1,1.10043]
[1746658198696,17.80160016,1817.2,1817.1,1.10043]
[1746658199796,17.80160016,1817.2,1817.1,2.74433]
[1746658200194,16.70112016,1817.2,1817.1,2.74433]
[1746658200497,2.95568,1817.3,1817.2,1.10042]
[1746658200686,17.93400016,1817.3,1817.2,2.71352]
[1746658200996,4.9871,1817.4,1817.2,2.71352]
[1746658201297,4.9871,1817.4,1817.3,2.71346]
[1746658201298,18.18612016,1817.4,1817.3,2.71346]
[1746658201497,18.18612016,1817.4,1817.3,4.40982884]
[1746658201703,19.28642016,1817.4,1817.3,4.40964996]
[1746658201997,19.28642016,1817.4,1817.3,3.65476]
[1746658202198,19.28642016,1817.4,1817.3,8.0837018]
[1746658202398,16.07862016,1817.4,1817.3,8.0837018]
[1746658202792,4.1747,1817.6,1817.3,6.9833418]
[1746658203101,14.97832016,1817.5,1817.4,2.7134]
[1746658203301,18.82472016,1817.6,1817.5,1.10024]
[1746658203501,18.82472016,1817.6,1817.5,2.71334]
[1746658203894,18.82470016,1817.6,1817.5,2.71334]
[1746658204099,17.72452016,1817.6,1817.5,2.71334]
[1746658204401,17.72452016,1817.6,1817.5,6.38734]
[1746658205200,17.72452016,1817.6,1817.5,7.14350299]
[1746658205392,17.72452016,1817.6,1817.5,6.38734]
[1746658205794,17.72452016,1817.6,1817.5,7.14358141]
[1746658205999,18.82470016,1817.6,1817.5,6.38734]
[1746658207000,17.72452016,1817.6,1817.5,6.38734]
[1746658207395,6.61805,1817.7,1817.6,1.10018]
[1746658207695,24.13277016,1817.7,1817.6,2.85188]
[1746658212998,24.13277016,1817.7,1817.6,1.10018]
[1746658214302,24.13277016,1817.7,1817.6,1.85880734]
[1746658214500,24.13277016,1817.7,1817.6,1.10018]
[1746658214703,9.15445,1817.7,1817.6,1.10018]
[1746658214902,24.13277016,1817.7,1817.6,1.10018]
[1746658215593,24.13277016,1817.7,1817.6,1.85891227]
[1746658215807,24.13277016,1817.7,1817.6,3.62141227]
[1746658216305,24.13277016,1817.7,1817.6,3.62152705]